lending/lending_fUSD_20240128
["ID","MTS","AMOUNT","RATE_DAILY","PERIOD"]
[312909917,1706454724487,-285.34016914,0.00054794,45]
[312909918,1706454724515,-778.45,0.00054794,120]
[312909919,1706454724540,-611.8763765,0.00054794,45]
[312909920,1706454724565,-500.0,0.00054794,120]
[312909921,1706454724589,-500.0,0.00054794,31]
[312909922,1706454724614,-506.29336512,0.00054794,31]
[312909923,1706454724639,-709.3,0.00054794,120]
[312909924,1706454724666,-899.6857965,0.00054794,45]
[312909925,1706454724691,-546.77,0.00054794,120]
[312909926,1706454724715,-500.0,0.00054794,120]
[312909927,1706454724746,-958.78,0.00054794,120]
[312909928,1706454724772,-284.7339485,0.00054794,120]
[312909929,1706454724796,-300.0,0.00054794,120]
[312909930,1706454724820,-300.0,0.00054794,120]
[312909931,1706454724845,-300.0,0.00054794,120]
[312909932,1706454724869,-300.0,0.00054794,120]
[312909933,1706454724894,-300.0,0.00054794,120]
[312909934,1706454724918,-300.0,0.00054794,120]
[312909935,1706454724943,-300.0,0.00054794,120]
[312909936,1706454725071,-409.69734052,0.00054794,120]
[312909937,1706454725099,-750.0,0.00054794,120]
[312909938,1706454725126,-500.0,0.00054794,120]
[312909939,1706454725155,-733.5,0.00054794,120]
[312909940,1706454725184,-192.83427244,0.00054794,45]
[312909941,1706454725215,-787.33,0.00054794,120]
[312909942,1706454725241,-500.0,0.00054794,120]
[312909943,1706454725268,-500.0,0.00054794,120]
[312909944,1706454725293,-500.0,0.00054794,120]
[312909945,1706454725319,-629.21,0.00054794,120]
[312909946,1706454725345,-629.27,0.00054794,120]
[312909947,1706454725370,-2086.17,0.00054794,120]
[312909948,1706454725395,-500.0,0.00054794,120]
[312909949,1706454725422,-500.0,0.00054794,120]
[312909950,1706454725448,-500.0,0.00054794,120]
[312909951,1706454725477,-500.0,0.00054794,120]
[312909952,1706454725504,-500.0,0.00054794,120]
[312909953,1706454725531,-1173.24002002,0.00054794,45]
[312909954,1706454725556,-500.0,0.00054794,120]
[312909955,1706454725586,-500.0,0.00054794,120]
[312909956,1706454725611,-11346.51,0.00054794,120]
[312909957,1706454725637,-500.0,0.00054794,120]
[312909958,1706454725663,-500.0,0.00054794,120]
[312909959,1706454725688,-500.0,0.00054794,120]
[312909960,1706454725713,-1249.59,0.00054794,120]
[312909961,1706454725739,-7265.0,0.00054794,120]
[312909962,1706454725765,-1492.32,0.00054794,120]
[312909963,1706454725795,-500.0,0.00054794,120]
[312909964,1706454725820,-228.43492715,0.00054794,60]
[312909965,1706454725846,-500.0,0.00054794,120]
[312909966,1706454725871,-249.37741046,0.00054794,60]
[312909967,1706454725898,-1318.47,0.00054794,120]
[312909968,1706454725924,-500.0,0.00054794,120]
[312909969,1706454725951,-500.0,0.00054794,120]
[312909970,1706454725976,-226.46870913,0.00054794,60]
[312909971,1706454726002,-500.0,0.00054794,120]
[312909972,1706454726030,-151.83647324,0.00054794,60]
[312909973,1706454726055,-187.26886661,0.00054794,120]
[312909974,1706454726083,-1000.0,0.00054794,45]
[312909975,1706454726115,-500.0,0.00054794,120]
[312909976,1706454726143,-500.0,0.00054794,120]
[312909977,1706454726168,-1000.0,0.00054794,30]
[312909978,1706454726193,-1000.0,0.00054794,30]
[312909979,1706454726218,-1000.0,0.00054794,30]
[312909980,1706454726249,-1000.0,0.00054794,30]
[312909981,1706454726274,-1000.0,0.00054794,30]
[312909982,1706454726299,-1000.0,0.00054794,30]
[312909983,1706454726325,-1000.0,0.00054794,30]
[312909984,1706454726349,-1000.0,0.00054794,30]
[312909985,1706454726375,-1000.0,0.00054794,30]
[312909986,1706454726400,-359.05944465,0.00054794,30]
[312909987,1706454726425,-518.89,0.00054794,120]
[312909988,1706454726451,-268.73868881,0.00054794,120]
[312909989,1706454726477,-500.0,0.00054795,120]
[312909990,1706454726502,-3367.38,0.00054795,30]
[312909991,1706454726903,213.05453321,0.00042971,31]
[312909992,1706454726938,213.05453321,0.00043946,36]
[312909993,1706454726989,213.05453321,0.00044922,41]
[312909994,1706454727027,213.05453321,0.00045898,46]
[312909995,1706454727064,213.05453321,0.00046873,51]
[312909996,1706454727167,1681.49497355,0.00054794,45]
[312909997,1706454727212,213.05453321,0.00047849,56]
[312909998,1706454727248,213.05453321,0.00048824,61]
[312909999,1706454727299,213.05453321,0.000498,67]
[312910000,1706454727781,500.0,0.00052054,31]
[312910001,1706454728033,500.0,0.00052328,31]
[312910002,1706454728306,619.49621999,0.00052602,31]
[312910003,1706454730384,4000.20087229,0.00045,30]
[312910004,1706454732577,359.82847572,0.0005,120]
[312910005,1706454732760,500.0,0.00052054,31]
[312910006,1706454733034,500.0,0.00052328,31]
[312910007,1706454733332,500.0,0.00052602,31]
[312910008,1706454733612,500.0,0.00052876,31]
[312910009,1706454733767,489376.41050696,0.0005,60]
[312910010,1706454733889,500.0,0.0005315,31]
[312910011,1706454734146,500.0,0.00053424,31]
[312910012,1706454734420,500.0,0.00053698,31]
[312910013,1706454734667,500.0,0.00053972,31]
[312910014,1706454734942,500.0,0.00054246,31]
[312910015,1706454735214,500.0,0.0005452,120]
[312910016,1706454735542,500.0,0.00054794,120]
[312910017,1706454735834,350.41904523,0.00052054,31]
[312910018,1706454982909,49292.90892802,0.000225,2]
[312910019,1706454993982,249.41,0.00020916,2]
[312910020,1706455117524,176.65,0.00022,2]
[312910021,1706455125129,942.80960137,0.00022,2]
[312910023,1706455312915,2000.0,0.00022217,2]
[312910024,1706455324420,542.2,0.00022217,2]
[312910025,1706455421146,152.42,0.00022214,2]
[312910026,1706455430874,655.93,0.00022252,2]
[312910027,1706455436502,236.93,0.00020396,2]
[312910029,1706455512029,590.08,0.00022304,2]
[312910030,1706455512482,191.01,0.00022304,2]
[312910031,1706455521388,250.0,0.0002219,2]
[312910032,1706455521781,168.67,0.0002248,2]
[312910033,1706455742675,352.72,0.00022,2]
[312910035,1706455771964,194.08,0.00022179,2]
[312910046,1706455831586,-155.0,0.00022529,2]
[312910047,1706455831595,-762.88536751,0.00022529,2]
[312910048,1706455831641,-237.11463249,0.00022529,2]
[312910049,1706455831652,-186.34956839,0.0002253,2]
[312910050,1706455831667,-53.95549509,0.0002253,2]
[312910051,1706455831677,-943.02806725,0.0002253,2]
[312910052,1706455831686,-6.25410194,0.000226,2]
[312910053,1706455831698,-253.24944548,0.000226,2]
[312910054,1706455831710,-3361.46195258,0.000226,2]
[312910055,1706455831719,-236.93,0.0002266,2]
[312910056,1706455831729,-3090.68977388,0.000227,2]
[312910057,1706455831748,-1909.31022612,0.000227,2]
[312910058,1706455831756,-409.92,0.000227,2]
[312910059,1706455831766,-246.42285494,0.00022767,2]
[312910060,1706455831776,-1372.58795079,0.00022767,2]
[312910061,1706455831785,-495.4850043,0.00022768,2]
[312910062,1706455831794,-1401.0,0.0002277,2]
[312910063,1706455831804,-156.42383833,0.00022799,2]
[312910064,1706455831813,-3500.39,0.00022799,2]
[312910065,1706455831822,-499.99,0.00022799,2]
[312910066,1706455831831,-200.0,0.00022816,2]
[312910067,1706455831840,-200.0,0.00022816,2]
[312910068,1706455831849,-800.0,0.00022816,2]
[312910069,1706455831858,-168.67,0.00022871,2]
[312910071,1706455831867,-2314.4807,0.00022899,2]
[312910073,1706455831876,-8580.8025,0.00022899,2]
[312910075,1706455831885,-416.3619,0.00022899,2]
[312910077,1706455831894,-1000.0,0.00022899,2]
[312910079,1706455831903,-1020.5537,0.00022899,2]
[312910081,1706455831912,-2006.5353,0.00022899,2]
[312910083,1706455831921,-541.7123,0.00022899,2]
[312910086,1706455831930,-189.4381,0.00022899,2]
[312910088,1706455831939,-9914.10605534,0.00022899,2]
[312910091,1706455831966,-629.86,0.00022899,2]
[312910100,1706455837564,-1319.04852,0.00022899,2]
[312910101,1706455837575,-8249.40037479,0.00022899,2]
[312910104,1706455837587,-358.01197968,0.00022899,2]
[312910105,1706455838157,-2103.95157019,0.00022899,2]
[312910106,1706455838167,-184.81576064,0.00022899,2]
[312910107,1706455838176,-258.66899261,0.00022899,2]
[312910108,1706455838186,-1601.96367654,0.000229,2]
[312910109,1706455838197,-1457.00700645,0.000229,2]
[312910110,1706455838206,-400.44395024,0.000229,2]
[312910111,1706455838216,-154.56927408,0.000229,2]
[312910112,1706455838225,-5000.0,0.000229,2]
[312910113,1706455838235,-184.81576064,0.000229,2]
[312910114,1706455838244,-398.02166506,0.000229,2]
[312910115,1706455838253,-237.8559304,0.00022986,3]
[312910116,1706455838263,-1000.0,0.00022986,2]
[312910117,1706455838272,-1000.0,0.00022986,2]
[312910118,1706455838281,-11171.10468059,0.00022987,2]
[312910119,1706455838290,-3664.6344896,0.00022997,2]
[312910120,1706455838299,-518.32067458,0.00022997,2]
[312910121,1706455838308,-589.34963525,0.00022997,2]
[312910122,1706455838432,-493.45959145,0.00022997,2]
[312910123,1706455838441,-533.3554065,0.00022997,2]
[312910124,1706455838450,-6445.94467404,0.00022997,2]
[312910125,1706455838459,-4450.0,0.00022997,2]
[312910126,1706455838469,-1137.46246107,0.00022998,2]
[312910127,1706455838480,-253.92586632,0.00022998,2]
[312910128,1706455838492,-404.12442134,0.00022998,2]
[312910129,1706455838501,-202.57156383,0.00022998,2]
[312910131,1706455838510,-155.0,0.00022998,2]
[312910133,1706455838520,-1769.33521671,0.00022998,2]
[312910134,1706455838530,-198.24113004,0.00022998,2]
[312910136,1706455838539,-314.39121002,0.00022998,2]
[312910137,1706455838549,-4639.84032946,0.00022998,2]
[312910138,1706455838559,-248.93553519,0.00022998,2]
[312910139,1706455838568,-421.02363331,0.00022998,2]
[312910140,1706455838578,-376.29781641,0.00022998,2]
[312910141,1706455838587,-197.54618209,0.00022998,2]
[312910142,1706455838596,-340.45017893,0.00022998,2]
[312910143,1706455838606,-697.62700742,0.00022998,2]
[312910144,1706455838615,-204.56258231,0.00022998,2]
[312910145,1706455838624,-486.28507678,0.00022998,2]
[312910146,1706455838633,-323.9980328,0.00022999,3]
[312910147,1706455838642,-2210.81883918,0.00022999,2]
[312910148,1706455838654,-535812.06574257,0.00022999,2]
[312910149,1706455838664,-635.91201103,0.00022999,2]
[312910150,1706455838673,-635.91201103,0.00022999,2]
[312910151,1706455838682,-635.91201103,0.00022999,2]
[312910152,1706455838691,-635.91201103,0.00022999,2]
[312910153,1706455838700,-635.91201103,0.00022999,2]
[312910154,1706455838709,-635.91201103,0.00022999,2]
[312910155,1706455838719,-635.91201103,0.00022999,2]
[312910156,1706455838728,-635.91201103,0.00022999,2]
[312910157,1706455838738,-635.91201103,0.00022999,2]
[312910158,1706455838749,-635.91201103,0.00022999,2]
[312910159,1706455838760,-635.91201103,0.00022999,2]
[312910160,1706455838770,-635.91201103,0.00022999,2]
[312910161,1706455838779,-635.91201103,0.00022999,2]
[312910162,1706455838788,-635.91201103,0.00022999,2]
[312910163,1706455838797,-635.91201103,0.00022999,2]
[312910164,1706455838806,-635.91201103,0.00022999,2]
[312910165,1706455838815,-635.91201103,0.00022999,2]
[312910166,1706455838824,-635.91201103,0.00022999,2]
[312910167,1706455838832,-635.91201103,0.00022999,2]
[312910168,1706455838841,-635.91201103,0.00022999,2]
[312910169,1706455838851,-635.91201103,0.00022999,2]
[312910170,1706455838860,-635.91201103,0.00022999,2]
[312910171,1706455838869,-635.91201103,0.00022999,2]
[312910172,1706455838879,-635.91201103,0.00022999,2]
[312910173,1706455838888,-635.91201103,0.00022999,2]
[312910174,1706455838898,-635.91201103,0.00022999,2]
[312910175,1706455838907,-635.91201103,0.00022999,2]
[312910176,1706455838916,-635.91201103,0.00022999,2]
[312910177,1706455838926,-635.91201103,0.00022999,2]
[312910178,1706455838935,-635.91201103,0.00022999,2]
[312910179,1706455838944,-635.91201103,0.00022999,2]
[312910180,1706455838953,-635.91201103,0.00022999,2]
[312910181,1706455838962,-635.91201103,0.00022999,2]
[312910182,1706455838971,-635.91201103,0.00022999,2]
[312910183,1706455838980,-635.91201103,0.00022999,2]
[312910184,1706455838989,-635.91201103,0.00022999,2]
[312910185,1706455838999,-635.91201103,0.00022999,2]
[312910186,1706455839008,-635.91201103,0.00022999,2]
[312910187,1706455839017,-635.91201103,0.00022999,2]
[312910188,1706455839027,-635.91201103,0.00022999,2]
[312910189,1706455839037,-635.91201103,0.00022999,2]
[312910190,1706455839046,-635.91201103,0.00022999,2]
[312910191,1706455839055,-635.91201103,0.00022999,2]
[312910192,1706455839065,-635.91201103,0.00022999,2]
[312910193,1706455839074,-635.91201103,0.00022999,2]
[312910194,1706455839084,-635.91201103,0.00022999,2]
[312910195,1706455839093,-635.91201103,0.00022999,2]
[312910196,1706455839102,-635.91201103,0.00022999,2]
[312910197,1706455839111,-635.91201103,0.00022999,2]
[312910198,1706455839121,-635.91201103,0.00022999,2]
[312910199,1706455839130,-635.91201103,0.00022999,2]
[312910200,1706455839139,-635.91201103,0.00022999,2]
[312910201,1706455839148,-635.91201103,0.00022999,2]
[312910202,1706455839157,-635.91201103,0.00022999,2]
[312910203,1706455839166,-635.91201103,0.00022999,2]
[312910204,1706455839175,-635.91201103,0.00022999,2]
[312910205,1706455839184,-635.91201103,0.00022999,2]
[312910206,1706455839193,-635.91201103,0.00022999,2]
[312910207,1706455839202,-635.91201103,0.00022999,2]
[312910208,1706455839212,-635.91201103,0.00022999,2]
[312910209,1706455839221,-635.91201103,0.00022999,2]
[312910210,1706455839230,-635.91201103,0.00022999,2]
[312910211,1706455839239,-635.91201103,0.00022999,2]
[312910212,1706455839249,-635.91201104,0.00022999,2]
[312910213,1706455839258,-635.91201104,0.00022999,2]
[312910214,1706455839267,-635.91201104,0.00022999,2]
[312910215,1706455839277,-635.91201104,0.00022999,2]
[312910216,1706455839286,-635.91201104,0.00022999,2]
[312910217,1706455839296,-635.91201104,0.00022999,2]
[312910218,1706455839305,-635.91201104,0.00022999,2]
[312910219,1706455839314,-635.91201104,0.00022999,2]
[312910220,1706455839323,-635.91201104,0.00022999,2]
[312910221,1706455839332,-635.91201104,0.00022999,2]
[312910222,1706455839341,-635.91201104,0.00022999,2]
[312910223,1706455839350,-635.91201104,0.00022999,2]
[312910224,1706455839359,-635.91201104,0.00022999,2]
[312910225,1706455839369,-635.91201104,0.00022999,2]
[312910226,1706455839378,-635.91201104,0.00022999,2]
[312910227,1706455839387,-635.91201104,0.00022999,2]
[312910228,1706455839396,-635.91201104,0.00022999,2]
[312910229,1706455839406,-635.91201104,0.00022999,2]
[312910230,1706455839414,-635.91201104,0.00022999,2]
[312910231,1706455839424,-635.91201104,0.00022999,2]
[312910232,1706455839432,-635.91201104,0.00022999,2]
[312910233,1706455839442,-635.91201104,0.00022999,2]
[312910234,1706455839450,-635.91201104,0.00022999,2]
[312910235,1706455839459,-635.91201104,0.00022999,2]
[312910236,1706455839468,-635.91201104,0.00022999,2]
[312910237,1706455839477,-635.91201104,0.00022999,2]
[312910238,1706455839491,-635.91201102,0.00022999,2]
[312910239,1706455839501,-2289548.34009844,0.00023,2]
[312910240,1706455839510,-24807.52325785,0.00023,2]
[312910241,1706455839528,-17635.74365211,0.00023,2]
[312910242,1706455839540,-382.89659865,0.00023,2]
[312910243,1706455839555,-327.40028443,0.00023,2]
[312910244,1706455839567,-462.09903594,0.00023,2]
[312910245,1706455839614,-1273.19236374,0.00023,2]
[312910246,1706455839629,-830.35962755,0.00023,2]
[312910247,1706455839641,-14770.70711401,0.00023,2]
[312910248,1706455839652,-985354.70587298,0.00023,2]
[312910254,1706455840274,-295.61931252,0.00023,2]
[312910255,1706455840287,-847.67976,0.00023,2]
[312910256,1706455840299,-664.12836649,0.00023,2]
[312910268,1706455843328,-529.73999,0.00023,2]
[312910269,1706455843340,-16415.28226335,0.00023,2]
[312910270,1706455843397,-863.97784186,0.00023,2]
[312910271,1706455843560,-1107.28454596,0.00023,2]
[312910282,1706455845713,-414.5,0.00023,2]
[312910283,1706455845948,-721.43941683,0.00023,2]
[312910290,1706455856533,376.19434336,0.00022179,2]
[312910291,1706455861307,212.75188405,0.00020698,2]
[312910292,1706455933475,213.23,0.00022488,2]
[312910294,1706456113777,500.0,0.0003025,90]
[312910296,1706456346358,174.33,0.000225,2]
[312910299,1706456374133,209.0,0.00026924,7]
[312910300,1706456376697,227.27,0.0002074,2]
[312910301,1706456529603,-240.30506348,0.00022598,2]
[312910302,1706456562858,-472.07,0.00022599,2]
[312910303,1706456562879,-697.96516303,0.00022768,2]
[312910304,1706456562902,-800.0,0.00022815,2]
[312910305,1706456562923,-200.0,0.00022816,2]
[312910306,1706456562945,-200.0,0.00022816,2]
[312910307,1706456562966,-800.0,0.00022816,2]
[312910308,1706456562988,-200.0,0.00022816,2]
[312910309,1706456563111,-451.83,0.00022853,2]
[312910310,1706456563133,-330.7093,0.00022899,2]
[312910311,1706456563155,-300.0,0.00022899,2]
[312910312,1706456563176,-150.0,0.00022899,2]
[312910313,1706456563197,-5000.0,0.000229,2]
[312910314,1706456563220,-290.45032447,0.000229,2]
[312910315,1706456563242,-2442.8482,0.000229,2]
[312910316,1706456563264,-5281.86,0.00022918,2]
[312910317,1706456563289,-163.94,0.00022959,2]
[312910318,1706456563312,-164.90379924,0.00022998,3]
[312910319,1706456563335,-203.37710716,0.00022998,2]
[312910320,1706456563357,-1000.0,0.00022998,2]
[312910321,1706456563379,-429.26665339,0.00022998,2]
[312910322,1706456563402,-233.42707403,0.00022998,2]
[312910323,1706456563423,-240.30506348,0.00022998,2]
[312910324,1706456563446,-292.67244175,0.00022999,2]
[312910325,1706456563468,-400.0,0.00022999,2]
[312910326,1706456563491,-172.63028835,0.00022999,2]
[312910327,1706456563513,-497.83874033,0.00022999,2]
[312910328,1706456563536,-190.43595674,0.00023,3]
[312910329,1706456563559,-667428.10644977,0.00023,2]
[312910330,1706456563580,-2000.0,0.00023,2]
[312910331,1706456563602,-109.69493652,0.00023,2]
[312910336,1706456733701,208.0,0.00022249,2]
[312910337,1706456733962,208.0,0.00026024,7]
[312910338,1706456746548,9105.50132638,0.00022323,7]
[312910339,1706456746944,-240.30506348,0.00022614,2]
[312910340,1706456746965,-150.0,0.00022615,2]
[312910341,1706456746987,-200.0,0.00022816,2]
[312910342,1706456747009,-200.0,0.00022816,2]
[312910343,1706456747031,-800.0,0.00022816,2]
[312910344,1706456747053,-90.30506348,0.00023,2]
[312910345,1706456747076,-150.0,0.00023,2]
[312910346,1706456747097,-163.7520668,0.00023,2]
[312910347,1706456747213,-361.14981153,0.00023,2]
[312910348,1706456747236,-227.27,0.00023004,2]
[312910349,1706456747261,-330.0,0.0002313,2]
[312910350,1706456747283,-2000.0,0.0002323,2]
[312910351,1706456747305,-200.0,0.0002323,2]
[312910352,1706456747327,-503.91173672,0.000234,2]
[312910353,1706456747349,-2000.0,0.00023462,2]
[312910354,1706456747371,-200.0,0.00023462,2]
[312910355,1706456747394,-158.49900803,0.00023498,2]
[312910356,1706456747416,-197.31224303,0.00023498,2]
[312910357,1706456747439,-1000.0,0.00023498,2]
[312910358,1706456747462,-1043.56158327,0.00023498,2]
[312910359,1706456747484,-155.0,0.00023498,2]
[312910360,1706456747509,-1138.41589394,0.00023498,2]
[312910361,1706456747531,-211.90200046,0.00023498,2]
[312910362,1706456747554,-160.85063885,0.00023498,2]
[312910363,1706456747576,-364.35538868,0.00023498,2]
[312910364,1706456747597,-155.0,0.00023498,2]
[312910365,1706456747619,-760.31642859,0.00023498,2]
[312910366,1706456747641,-752.96033911,0.00023498,2]
[312910367,1706456747664,-155.0,0.00023498,2]
[312910368,1706456747687,-314.84506733,0.00023498,2]
[312910369,1706456747709,-279.55344509,0.00023498,2]
[312910370,1706456747733,-318.96286189,0.00023498,2]
[312910371,1706456747760,-155.18600244,0.00023498,2]
[312910372,1706456747781,-1056.37458734,0.00023498,2]
[312910373,1706456747808,-418.78043636,0.00023498,2]
[312910374,1706456747849,-527.36681335,0.00023498,2]
[312910375,1706456747886,-156.07370626,0.00023498,2]
[312910376,1706456747924,-338.17308084,0.00023498,2]
[312910377,1706456747961,-543.89474712,0.00023498,2]
[312910378,1706456747997,-158.50530829,0.00023499,2]
[312910379,1706456748039,-233.94623394,0.000235,3]
[312910380,1706456748077,-16228.0,0.000235,2]
[312910381,1706456748109,-626.76810437,0.000235,2]
[312910382,1706456749452,150.0,0.0002248,2]
[312910383,1706456751949,173.5954669,0.00024489,7]
[312910384,1706456764170,206.0,0.00022249,2]
[312910385,1706456768546,9105.50132638,0.00023262,7]
[312910386,1706456784616,9105.50132638,0.00023262,7]
[312910387,1706456787750,200.0,0.0003025,90]
[312910388,1706456802560,1726.10301522,0.00023261,7]
[312910389,1706456832797,227.52,0.00021288,2]
[312910413,1706457032003,-255.4812832,0.00022987,2]
[312910414,1706457032062,-162.91240807,0.00022888,2]
[312910415,1706457032072,-701.77200901,0.00022987,2]
[312910459,1706457037919,-526.11871411,0.00022986,2]
[312910461,1706457037930,-3467.03707583,0.00022987,2]
[312910468,1706457037998,-283.73145253,0.00022987,2]
[312910471,1706457038008,-200.0,0.00022988,2]
[312910472,1706457038017,-240.30506348,0.00022988,2]
[312910473,1706457038028,-155.0,0.00022988,2]
[312910474,1706457038037,-1231.96348399,0.00022988,4]
[312910791,1706457041146,-265.8192,0.00022988,4]
[312911047,1706457043381,-2186.64425446,0.00022988,4]
[312911050,1706457043391,-300.0,0.00022999,2]
[312911053,1706457043400,-150.0,0.00022999,2]
[312911056,1706457043409,-150.0,0.00022999,2]
[312911059,1706457043419,-93.53599288,0.00023,2]
[312911064,1706457043430,-516.31864853,0.00023,2]
[312911067,1706457043440,-150.0,0.00023,2]
[312911070,1706457043450,-167.66,0.00023004,2]
[312911072,1706457043459,-622.34,0.0002315,2]
[312911074,1706457043469,-163.36,0.00023278,2]
[312911077,1706457043478,-250.0,0.00023423,2]
[312911080,1706457043489,-215.71744447,0.00023475,2]
[312911085,1706457043503,-426.74548196,0.00023498,3]
[312911088,1706457043513,-203.37710716,0.00023498,2]
[312911090,1706457043522,-685.42472441,0.00023498,2]
[312911092,1706457043532,-212.06767792,0.00023498,2]
[312911094,1706457043542,-218.13979493,0.00023498,2]
[312911096,1706457043555,-697.4417975,0.00023498,2]
[312911098,1706457043564,-199.56392096,0.00023498,2]
[312911100,1706457043574,-263.57238375,0.00023498,2]
[312911103,1706457043584,-1180.14825816,0.00023498,2]
[312911105,1706457043594,-347.41893448,0.00023498,2]
[312911107,1706457043603,-248.75310239,0.00023498,2]
[312911109,1706457043613,-171.70472139,0.00023498,2]
[312911111,1706457043623,-629.50668256,0.00023498,2]
[312911113,1706457043632,-504.75379186,0.00023498,2]
[312911115,1706457043642,-377.49486276,0.00023498,2]
[312911117,1706457043651,-281.84911797,0.00023498,2]
[312911119,1706457043661,-155.0,0.00023498,2]
[312911121,1706457043670,-611.16412055,0.00023498,2]
[312911123,1706457043680,-155.0,0.00023498,2]
[312911125,1706457043689,-155.78821564,0.00023498,2]
[312911127,1706457043698,-155.0,0.00023498,2]
[312911129,1706457043707,-156.47476406,0.00023498,2]
[312911131,1706457043717,-354.87715265,0.00023498,2]
[312911133,1706457043726,-488.34668104,0.00023498,2]
[312911135,1706457043737,-4279.3718956,0.00023499,2]
[312911137,1706457043746,-150.99,0.00023499,2]
[312911139,1706457043756,-3382.23189563,0.000235,2]
[312911141,1706457043765,-14605.0,0.000235,2]
[312911143,1706457043774,-661.68,0.00023504,2]
[312911145,1706457043783,-227.52,0.00023552,2]
[312911147,1706457043792,-163.36,0.00023682,2]
[312911149,1706457043801,-2000.0,0.00023697,2]
[312911151,1706457043810,-200.0,0.00023697,2]
[312911153,1706457043820,-1030.11592113,0.00023817,2]
[312911155,1706457043829,-191.01,0.00023872,2]
[312911157,1706457043838,-2000.0,0.00023934,2]
[312911160,1706457043852,-200.0,0.00023934,2]
[312911161,1706457043861,-158.190483,0.00024,2]
[312911163,1706457043870,-155.52969483,0.00024,2]
[312911166,1706457043880,-201.54460435,0.00024,2]
[312911168,1706457043889,-163.36,0.00024087,2]
[312911170,1706457043899,-19035.2248999,0.00024088,2]
[312911172,1706457043912,-964.7750001,0.00024088,2]
[312911174,1706457043922,-167.0,0.00024297,2]
[312911176,1706457043933,-172.74,0.00024297,2]
[312911178,1706457043943,-167.0,0.00024297,2]
[312911180,1706457043953,-169.80948299,0.000243,2]
[312911182,1706457043962,-999.46975026,0.00024388,2]
[312911185,1706457043973,-3037.38014974,0.00024388,2]
[312911187,1706457043985,-800.0,0.00024466,2]
[312911189,1706457043994,-16477.41985026,0.00024487,2]
[312911192,1706457044013,-6575.71004011,0.00024487,2]
[312911317,1706457047089,-4668.87991985,0.00024487,2]
[312911322,1706457060544,561.74334566,0.00021793,2]
[312911323,1706457079301,733.13125974,0.00021,2]
[312911324,1706457080542,242.92159433,0.00021792,2]
[312911325,1706457114719,799.83,0.00021689,2]
[312911326,1706457130498,299.99,0.00024485,7]
[312911327,1706457249119,3303.23759422,0.0002,2]
[312911330,1706457269320,204.76,0.0002154,2]
[312911331,1706457411052,258.33493005,0.00022,2]
[312911332,1706457514198,150.0,0.00022,2]
[312911333,1706457714362,194.52,0.00020819,2]
[312911339,1706457865273,497.88,0.00022139,2]
[312911344,1706457886091,551.4,0.00022139,2]
[312911346,1706457917831,162.91240807,0.00022448,2]
[312911347,1706457999658,150.92565863,0.00022426,2]
[312911380,1706458074818,912.90751035,0.00022426,2]
[312911383,1706458119126,381.72299987,0.00022426,2]
[312911384,1706458119325,500.0,0.0002224,2]
[312911388,1706458217159,151.34,0.00022453,2]
[312911389,1706458218471,184.79,0.00020368,2]
[312911396,1706458232093,-337.8824106,0.00022507,2]
[312911397,1706458232102,-580.96111801,0.00022508,2]
[312911398,1706458232111,-174.69775186,0.00022509,2]
[312911399,1706458232120,-526.11871411,0.00022509,2]
[312911400,1706458232129,-160.32047041,0.0002251,2]
[312911401,1706458232138,-240.30506348,0.0002251,2]
[312911402,1706458232147,-150.0,0.00022548,2]
[312911403,1706458232156,-184.79,0.00022632,2]
[312911404,1706458232165,-151.34,0.00022745,2]
[312911405,1706458232174,-150.0,0.00022759,2]